Cogmind - Beta 13 @@@ ROGUE MODE // 2024.04.04 @ 18:02:35 Player: Bifty Result: Smashed by cave-in Performance ------------- Evolutions (0) 0 Regions Visited (3) 600 Robots Destroyed (13) 65 Value Destroyed (417) 417 Prototype IDs (2) 40 Alien Tech Used (0) 0 Bonus (0) 0 TOTAL SCORE: 1122 Bonus ------- None Cogmind --------- Core Integrity 0/250 Matter 288/300 Energy 100/100 System Corruption 6% Temperature Cool (85) Movement Walking (190) Ox1 Location -10/Exiles Parts ------- > --- POWER (1) -------- (None) > --- PROPULSION (2) --- Aluminum Leg > --- UTILITY (2) ------ Medium Storage Unit Experimental Sensor Array > --- WEAPON (2) ------- Improved Medium Laser Improved Medium Laser > --- INVENTORY (10) --- Light Ion Engine Aluminum Leg Aluminum Leg Aluminum Leg Heat Sink Light Armor Plating Light Armor Plating Improved Medium Laser Grenade Launcher Peak State ------------ > --- POWER ------------ Light Ion Engine > --- PROPULSION ------- Aluminum Leg Aluminum Leg > --- UTILITY ---------- Medium Storage Unit Experimental Sensor Array > --- WEAPON ----------- Improved Medium Laser Makeshift Sword > --- INVENTORY -------- Light Ion Engine Aluminum Leg Aluminum Leg Aluminum Leg Heat Sink Light Armor Plating Light Armor Plating Improved Medium Laser Grenade Launcher [Rating: 21] Favorites ----------- Power Light Ion Engine Engine Light Ion Engine Propulsion Aluminum Leg Leg Aluminum Leg Utility Medium Storage Unit Device Experimental Sensor Array Storage Medium Storage Unit Processor Visual Processing Unit Weapon Improved Medium Laser Energy Gun Improved Medium Laser Slashing Weapon Makeshift Sword Build | -11 -10 -10 -10 ------- Run | Yrd Mat Min Exi Slots Evolved . | . . . . Power . | . . . . Propulsion . | . . . . Utility . | . . . . Weapon . | . . . . Parts Attached 18 | 7 8 1 2 Power 3 | 1 2 . . Engine 3 | 1 2 . . Core . | . . . . Reactor . | . . . . Propulsion 3 | 2 1 . . Treads . | . . . . Leg 3 | 2 1 . . Wheel . | . . . . Hover . | . . . . Flight . | . . . . Utility 4 | 1 2 1 . Device 1 | . . 1 . Storage 2 | 1 1 . . Processor 1 | . 1 . . Hackware . | . . . . Protection . | . . . . Artifact . | . . . . Weapon 8 | 3 3 . 2 Energy Gun 7 | 3 3 . 1 Energy Cannon . | . . . . Ballistic Gun . | . . . . Ballistic Cannon . | . . . . Launcher . | . . . . Special Weapon . | . . . . Impact Weapon . | . . . . Slashing Weapon 1 | . . . 1 Piercing Weapon . | . . . . Special Melee Weapon . | . . . . Unidentified Prototypes 2 | . 1 1 . Parts Lost 7 | . 4 . 3 Power 3 | . 2 . 1 Propulsion 2 | . 1 . 1 Utility . | . . . . Weapon 2 | . 1 . 1 Highest Loss Streak 3 | . 2 . 3 To Critical Strikes . | . . . . Average Slot Usage (%) 98 | . 96 100 100 Engine 13 | . 12 14 14 Leg 27 | . 27 28 28 Device 6 | . . 9 14 Storage 14 | . 14 14 14 Processor 7 | . 12 4 . Energy Gun 27 | . 28 28 27 Naked Turns . | . . . . Heaviest Build 20 | 14 19 20 20 Greatest Support 20 | 20 20 20 20 Greatest Overweight (x) . | . . . . Average Overweight (x) . | . . . . Largest Inventory Capacity 10 | 8 10 10 10 Average Capacity 9 | 7 8 10 10 Most Carried 10 | 6 10 10 10 Average Carried 8 | 4 7 9 9 Final Capacity 10 | 8 10 10 10 Final Carried 10 | 6 10 10 9 Class Distribution -------------------- 100% | Mutant Dominant Class ---------------- Mutant | -10/Materials Mutant | -10/Mines Mutant | -10/Exiles Resources | -11 -10 -10 -10 ----------- Run | Yrd Mat Min Exi Matter Collected 345 | 221 114 10 . Remotely . | . . . . Salvage Created 476 | . 418 58 . Parts 19 | . 19 . . Haulers Intercepted . | . . . . Recyclers Shooed . | . . . . Parts Field Recycled . | . . . . Retrieved Matter . | . . . . Parts Self-Destructed . | . . . . Prevented . | . . . . Kills | -11 -10 -10 -10 ------- Run | Yrd Mat Min Exi Combat Hostiles Destroyed 13 | . 12 1 . Guns 12 | . 12 . . Classes Destroyed 3 | . 2 1 . Swarmer 3 | . 3 . . Grunt 9 | . 9 . . Sentry 1 | . . 1 . Best Kill Streak 3 | . 3 1 . Combat Bots Only 3 | . 3 1 . Max Kills in Single Turn 1 | . 1 1 . Gunslinging . | . . . . Exploded . | . . . . Melee . | . . . . Uniques/NPCs Destroyed . | . . . . Combat | -11 -10 -10 -10 -------- Run | Yrd Mat Min Exi Hostile Shots Fired 89 | . 87 2 . Missed 24 | . 22 2 . Damage Taken 1227 | . 679 . 548 Core 275 | . 154 . 121 Absorbed by Shields . | . . . . Core Remaining (%) 100 | 100 . . . Volleys Fired 34 | . 29 3 2 Largest 2 | . 2 2 2 Hottest 112 | . 112 112 112 Shots Fired 67 | . 57 6 4 Gun 67 | . 57 6 4 Cannon . | . . . . Launcher . | . . . . Special . | . . . . Kinetic . | . . . . Thermal 67 | . 57 6 4 Explosive . | . . . . Electromagnetic . | . . . . Robot Hit Streak 6 | . 5 6 . Robot Miss Streak 2 | . 2 . . Penetration Max . | . . . . Secondary Targets 1 | . 1 . . Max Gunslinging Chain 1 | . 1 . . Shots Hit Robots 43 | . 38 5 . Core Hits 15 | . 14 1 . Critical Kills . | . . . . Critical Parts Destroyed . | . . . . Critical Strikes 4 | . 4 . . Burn 4 | . 4 . . Melee Attacks 9 | . . . 9 Impact . | . . . . Slashing 9 | . . . 9 Piercing . | . . . . Sneak Attacks . | . . . . Combat Hostiles . | . . . . Follow-up Attacks . | . . . . Damage Inflicted 728 | . 641 87 . Guns 728 | . 641 87 . Cannons . | . . . . Explosions . | . . . . Melee . | . . . . Ramming . | . . . . Kinetic . | . . . . Thermal 728 | . 641 87 . Explosive . | . . . . Electromagnetic . | . . . . Impact . | . . . . Slashing . | . . . . Piercing . | . . . . Highest Corruption 4 | . . . 4 Average Corruption 4 | . . . 4 Corruption Purged . | . . . . Corruption Blocked . | . . . . Effects 1 | . . . 1 Matter Fused 1 | . . . 1 Overload Shots . | . . . . Overflow Damage . | . . . . Projectiles . | . . . . Explosions . | . . . . Melee . | . . . . Knockbacks . | . . . . Impact . | . . . . Kinetic . | . . . . Secondary . | . . . . Self-Inflicted Damage . | . . . . Shots . | . . . . Rammed . | . . . . Targets Rammed . | . . . . Kicked . | . . . . Crushed . | . . . . Highest Temperature 427 | . 427 153 85 Average Temperature 165 | . 178 77 51 Received Heat Transfer 315 | . 315 . . Siege Activations . | . . . . Robots Corrupted . | . . . . Combat Hostiles . | . . . . Parts Fried . | . . . . Impact Corruptions . | . . . . Robots Melted 1 | . . 1 . Combat Hostiles 1 | . . 1 . Parts Melted 3 | . 1 2 . Heat Transferred 1887 | . 1702 185 . Parts Sabotaged . | . . . . Parts Stolen . | . . . . Parts Stripped . | . . . . Power Chain Reactions . | . . . . Alert | -11 -10 -10 -10 ------- Run | Yrd Mat Min Exi Peak Influence 155 | . 155 42 . Initial 42 | . . 42 . Average 49 | . 59 35 . Maximum Alert Level . | . . . . Low Security (%) 100 | 100 100 100 . Level 1 . | . . . . Level 2 . | . . . . Level 3 . | . . . . Level 4 . | . . . . Level 5 . | . . . . High Security . | . . . . Max Security . | . . . . Squads Dispatched 3 | . 3 . . Investigation 1 | . 1 . . Extermination . | . . . . Reinforcement 2 | . 2 . . Assault . | . . . . Garrison . | . . . . Intercept . | . . . . Searches Triggered . | . . . . Construction Impeded . | . . . . Haulers Reinforced . | . . . . Active Scanning Responses . | . . . . Cargo Convoy Interrupts . | . . . . Stealth | -11 -10 -10 -10 --------- Run | Yrd Mat Min Exi Distress Signals 2 | . 2 . . Communications Jammed . | . . . . Distress Signals . | . . . . Times Spotted 34 | . 33 1 . Peak Tracking Total 6 | . 6 1 . Tactical Retreats 1 | . 1 . . Traps | -11 -10 -10 -10 ------- Run | Yrd Mat Min Exi Traps Triggered 1 | . 1 . . Indirectly . | . . . . Trap Hack Attempts . | . . . . Triggered . | . . . . Disarmed . | . . . . Reprogrammed . | . . . . Reused . | . . . . Traps Extracted . | . . . . Installed . | . . . . Triggered . | . . . . Machines | -11 -10 -10 -10 ---------- Run | Yrd Mat Min Exi Machines Disabled 1 | . 1 . . Max in Single Turn 1 | . 1 . . Machines Repaired . | . . . . Machines Dismantled . | . . . . Machines Sabotaged . | . . . . Overloaded Fab Kills . | . . . . Hacking | -11 -10 -10 -10 --------- Run | Yrd Mat Min Exi Machines Accessed 1 | . . . 1 Terminals . | . . . . Fabricators . | . . . . Repair Stations . | . . . . Recycling Units . | . . . . Scanalyzers . | . . . . Garrison Access . | . . . . Total Hacks 2 | . . . 2 Successful 2 | . . . 2 Failed . | . . . . Catastrophic . | . . . . Database Lockouts . | . . . . Manual 1 | . . . 1 Terminals . | . . . . Fabricators . | . . . . Repair Stations . | . . . . Recycling Units . | . . . . Scanalyzers . | . . . . Garrison Access . | . . . . Terminal Hacks 2 | . . . 2 Record 2 | . . . 2 Fabricator Hacks . | . . . . Repair Station Hacks . | . . . . Recycling Unit Hacks . | . . . . Scanalyzer . | . . . . Garrison Access Hacks . | . . . . Unauthorized Hacks . | . . . . Terminals . | . . . . Fabricators . | . . . . Repair Stations . | . . . . Recycling Units . | . . . . Scanalyzers . | . . . . Garrison Access . | . . . . Data Cores Recovered . | . . . . Used . | . . . . Hacking Detections . | . . . . Full Trace Events . | . . . . Feedback Events . | . . . . Feedback Blocked . | . . . . Robot Schematics Acquired . | . . . . Robots Built . | . . . . Authchips . | . . . . Time . | . . . . Total Robot Build Rating . | . . . . Part Schematics Acquired . | . . . . Parts Built . | . . . . Authchips . | . . . . Time . | . . . . Total Part Build Rating . | . . . . Parts Repaired . | . . . . Time . | . . . . Parts Recycled . | . . . . Recycled Matter . | . . . . Retrieved Matter . | . . . . Retrieved Components . | . . . . Parts Scanalyzed . | . . . . Part Schematics Acquired . | . . . . Parts Damaged . | . . . . Bothacking | -11 -10 -10 -10 ------------ Run | Yrd Mat Min Exi Used RIF Installer . | . . . . Robots Hacked . | . . . . Non-combat . | . . . . Combat . | . . . . Robot Hacks Applied . | . . . . Relay Couplers Released . | . . . . Fabnet Peak Effective % . | . . . . Robots Rewired . | . . . . Allies Hacked . | . . . . Hacks Repelled . | . . . . Allies | -11 -10 -10 -10 -------- Run | Yrd Mat Min Exi Total Allies . | . . . . Largest Group . | . . . . Highest-Rated Group . | . . . . Highest-Rated Ally . | . . . . Total Orders . | . . . . Ally Attacks . | . . . . Total Damage . | . . . . Kills . | . . . . Allies Corrupted . | . . . . Allies Melted . | . . . . Intel | -11 -10 -10 -10 ------- Run | Yrd Mat Min Exi Robot Analysis Total . | . . . . Derelict Logs Recovered 1 | . . 1 . Drone Launches . | . . . . Drone Recoveries . | . . . . Exploration | -11 -10 -10 -10 ------------- Run | Yrd Mat Min Exi Turns Passed 2967 | 113 1419 551 884 Spaces Moved 2288 | 95 1033 447 713 Core 28 | 28 . . . Treads . | . . . . Legs 2260 | 67 1033 447 713 Wheels . | . . . . Hover . | . . . . Flight . | . . . . Fastest Speed 50 | 50 120 120 120 Average Speed 119 | 99 120 120 120 Slowest Speed 120 | 120 120 120 120 Overloaded Moves . | . . . . Propulsion Burnouts . | . . . . Robots Hopped . | . . . . Cave-ins Triggered 2 | . . . 2 Exploration Rate (%) 62 | 5 75 80 89 Regions Visited 3 Branch Regions 2 Pre-discovered Areas 1 | . . . 1 Known Exits Taken . | . . . . Unknown Exits Taken 3 | 1 1 1 . Scrap Searched 1 | . . 1 . Spaces Dug 7 | . . . 7 Terrain Destroyed 7 | . . . 7 Melee 7 | . . . 7 Projectile . | . . . . AOE . | . . . . Terrain Rammed . | . . . . Walls Destroyed . | . . . . Machines Disabled . | . . . . Actions | -11 -10 -10 -10 --------- Run | Yrd Mat Min Exi Total 2466 | 114 1161 457 734 Wait 58 | . 57 1 . Move 2284 | 94 1032 446 712 Hop . | . . . . Pick Up 41 | 12 22 3 4 Fast Attach . | . . . . Attach 15 | 7 5 1 2 Detach 1 | 1 . . . Swap 3 | . 3 . . Drop 20 | . 13 3 4 Fire 34 | . 29 3 2 Melee 9 | . . . 9 Ram . | . . . . Kick . | . . . . Crush . | . . . . Escape Stasis 1 | . . . 1 Rewire . | . . . . Trap . | . . . . Miscellaneous . | . . . . Route ------- -11/Scrapyard -10/Materials (discovered 3 exits: [*Mat x2] / [*Min]) -10/Mines (discovered 2 exits: [*Mat] / *Exi) -10/Exiles (discovered 2 exits: [*Min x2]) History --------- Turn | Location | Event 9 | -11/Scrapyard | Discovered new exit (range 15) 114 | -11/Scrapyard | Entered Materials 137 | -10/Materials | Discovered new exit (range 16) 306 | -10/Materials | Build established: Mutant 597 | -10/Materials | Discovered new exit (range 7) 671 | -10/Materials | Core integrity fell below 50% 940 | -10/Materials | Discovered new exit (range 3) 1533 | -10/Materials | Entered Mines 1719 | -10/Mines | Found a damaged Exp. Sensor Array with a note attached 1722 | -10/Mines | Found Prototype Device 1723 | -10/Mines | Identified Exp. Sensor Array 1826 | -10/Mines | Discovered new exit (range 9) 1996 | -10/Mines | Joined a pair of Derelicts in attacking an 0b10 outpost 2059 | -10/Mines | Deemed a non-threat by the Exiles lab entrance 2060 | -10/Mines | Discovered new exit (range 5) 2084 | -10/Mines | Entered Exiles 2084 | -10/Exiles | Found Exiles lab destroyed 2148 | -10/Exiles | Discovered new exit (range 14) 2449 | -10/Exiles | Learned location of Zion (-7) 2502 | -10/Exiles | Discovered new exit (range 14) 2962 | -10/Exiles | Crushed by falling debris 2963 | -10/Exiles | Core integrity fell below 20% 2969 | -10/Exiles | Crushed by falling debris 2969 | -10/Exiles | Smashed by cave-in Last Messages --------------- get an answer. --BIN EXIT=FOUND Connecting with BIN's Terminal... Connecting with HEX's Terminal... Connecting with EX-Vault Access... Dropped Sensor Array. Acquired Mak. Sword. Dropped Imp. Medium Laser. Acquired Imp. Medium Laser. The unstable cave ceiling collapses. Crushed by falling debris. Aluminum Leg destroyed. System corrupted by crushing effect (+1). Mak. Sword destroyed. System corrupted by crushing effect (+3). System corrupted: Matter fused (-7). The unstable cave ceiling collapses. Crushed by falling debris. Lgt. Ion Engine destroyed. System corrupted by crushing effect (+2). Map ----- +----------------------------------------------------+ | | | | | | | | | | | | | | | | | | | | | | | | | | | | | | | | | | | | | | | | | | | | | ????????????????????????###??????????????????????? | | ????????????????????????# #??????????????????????? | | ????????????????????????# #??????????????????????? | | ????????????????????????#@#??????????????????????? | | ????????????????????????###??????????????????????? | | ????????????????######### #??????????????????????? | | ????????????????#X " ##??????????????????????? | | ????????????????## ###???????????????????????? | | ?????????????????# #?????????????????????????? | | ?????????????????# #########?????????????????? | | ?????????????????# ##""""""#?????????????????? | | ?????????????????# ## """#?????????????????? | | ?????????????????# X""#?????????????????? | | ?????????????????# ## """#?????????????????? | | ??????????#####??# ##""""""#?????????????????? | | ??????????""""""?# #########?????????????????? | | ?????????#""" ## #?????????????????????????? | | ?????????#""X #?????????????????????????? | | ?????????#" #?????????????????????????? | | ?????????#" ## #?????????????????????????? | | ?????????#" ?# #??#######????????????????? | | ???????? ###??# #?#"""""""#???????????????? | | ??????# ??????# #?#"""""""#???????????????? | | ?????? ???????# ###" """#???????????????? | | ??????? ????????## ## ""#???????????????? | | ????????????????#" ""#???????????????? | | ????????????????#" "#???????????????? | | ????????????????#" "#???????????????? | +----------------------------------------------------+ Best States ------------- Heat Dissipation 25 Energy Generation 10 Energy Capacity 250 Matter Stores 300 Matter Capacity 300 Sight Range 18 Robot Scan Range 20 Terrain Scan Density 10 Evasion (%) 55 Item Schematics ----------------- None Robot Schematics ------------------ None Fabricated ------------ Nothing Alien Tech Used ----------------- None Achievements -------------- None Challenges ------------ None Game ------ Seed ImprovedImpulseCasing Manual? 0 Play Time 00:16:08 Cumulative 4.5 hours Start 2024.04.04 @ 17:46:34 End 2024.04.04 @ 18:02:35 Sessions 1 Manual Loads 0 Difficulty Rogue Special Mode None Game No. 11 Rogue 11 Adventurer 0 Explorer 0 Win Type - Total 0 Types 0/0/0/0/0/0/0/0/0 Lore% 10 Gallery% 13 Achievement% 12 Wizard Run 0 Options --------- Layout 1 ASCII 0 Keyboard 0 Movement Arrows Keybinds 0 Fullscreen 1 Font 32/SmallcapsGlow Map View 50x35 Zoom Use 0% Tactical HUD 0 Map Filters NONE Filters NONE Steam 1 RUN: beb3e4f9-612a-464e-9c4d-dd333141eee5